Cogmind - Beta 15 @@@ ROGUE MODE // 2025.10.12 @ 18:15:11 Player: DietSnapple Result: Destroyed by AM-GLF(R) with Subdweller Beam Cannon Performance ------------- Evolutions (0) 0 Regions Visited (3) 600 Robots Destroyed (32) 160 Value Destroyed (612) 612 Prototype IDs (0) 0 Alien Tech Used (0) 0 Bonus (-16) -16 TOTAL SCORE: 1356 Bonus ------- Friendly Fire -16 Cogmind --------- Core Integrity 0/250 Matter 170/300 Energy 100/100 System Corruption 0% Temperature Cool (9) Movement Core (350) Ox6 Location -10/Subcaves Parts ------- > --- POWER (1) -------- (None) > --- PROPULSION (2) --- (None) > --- UTILITY (2) ------ Large Storage Unit > --- WEAPON (2) ------- (None) > --- INVENTORY (15) --- Light Ion Engine Light Treads Light Treads Improved Heat Sink Medium Storage Unit Sensor Array Improved Terrain Scanner Scrap Shield Autogun Autogun Autogun Grenade Launcher Grenade Launcher Enhanced Flamer Peak State ------------ > --- POWER ------------ Light Nuclear Core > --- PROPULSION ------- Improved Treads Improved Treads > --- UTILITY ---------- Large Storage Unit Backup Plating I > --- WEAPON ----------- Autogun Enhanced Flamer > --- INVENTORY -------- Light Ion Engine Light Treads Light Treads Improved Treads Improved Treads Improved Heat Sink Medium Storage Unit Sensor Array Autogun Autogun Autogun Grenade Launcher Grenade Launcher Rocket Launcher [Rating: 16] Favorites ----------- Power Light Nuclear Core Engine Light Ion Engine Power Core Light Nuclear Core Propulsion Improved Treads Treads Improved Treads Utility Large Storage Unit Storage Large Storage Unit Protection Backup Plating I Weapon Autogun Energy Gun Medium Laser Ballistic Gun Autogun Launcher Grenade Launcher Special Weapon Enhanced Flamer Build | -11 -10 -10 -10 ------- Run | Yrd Mat Min Sub Slots Evolved . | . . . . Power . | . . . . Propulsion . | . . . . Utility . | . . . . Weapon . | . . . . Parts Attached 22 | 7 8 6 1 Power 2 | 1 1 . . Engine 1 | 1 . . . Core 1 | . 1 . . Reactor . | . . . . Propulsion 6 | 2 2 2 . Treads 6 | 2 2 2 . Leg . | . . . . Wheel . | . . . . Hover . | . . . . Flight . | . . . . Utility 4 | 1 2 1 . Device . | . . . . Storage 2 | 1 1 . . Processor . | . . . . Hackware . | . . . . Protection 2 | . 1 1 . Artifact . | . . . . Weapon 10 | 3 3 3 1 Energy Gun 1 | 1 . . . Energy Cannon . | . . . . Ballistic Gun 5 | 2 2 1 . Ballistic Cannon . | . . . . Launcher 3 | . 1 1 1 Special Weapon 1 | . . 1 . Impact Weapon . | . . . . Slashing Weapon . | . . . . Piercing Weapon . | . . . . Special Melee Weapon . | . . . . Unidentified Prototypes . | . . . . Parts Lost 8 | . . 3 5 Power 1 | . . . 1 Propulsion 3 | . . 1 2 Utility 2 | . . 2 . Weapon 2 | . . . 2 Highest Loss Streak 5 | . . 1 5 To Critical Strikes . | . . . . Average Backups 12 | 3 11 14 13 Power . | . 1 1 1 Propulsion 3 | 2 5 3 2 Utility 3 | . 2 3 4 Weapon 4 | . 2 5 6 Tool/Special . | . . . . Unused Backups 15 | . 4 2 9 Power 1 | . . . 1 Propulsion 7 | . 4 1 2 Utility 5 | . . . 5 Weapon 1 | . . . 1 Tool/Special 1 | . . 1 . Average Slot Usage (%) 94 | . 98 93 80 Engine 4 | . 12 . . Core 9 | . 1 14 12 Treads 27 | . 28 27 26 Storage 14 | . 15 14 14 Protection 8 | . 10 8 . Ballistic Gun 26 | . 27 26 24 Launcher 1 | . . 1 1 Peak Build Rating 16 | 6 15 16 14 Average Rating 12 | 4 9 14 13 On Entrance 8 | . 6 15 14 Naked Turns . | . . . . Heaviest Build 33 | 12 33 32 31 Greatest Support 46 | 40 46 46 46 Greatest Overweight (x) 1 | . . 1 . Average Overweight (x) . | . . . . Largest Inventory Capacity 15 | 8 15 15 15 Average Capacity 14 | 6 14 15 15 Most Carried 15 | 6 15 15 15 Average Carried 12 | 3 11 14 14 Final Capacity 15 | 8 15 15 15 Final Carried 15 | 6 15 13 15 Class Distribution -------------------- 100% | Mutant Dominant Class ---------------- Mutant | -10/Materials Mutant | -10/Mines Mutant | -10/Subcaves Resources | -11 -10 -10 -10 ----------- Run | Yrd Mat Min Sub Matter Collected 1039 | 256 305 478 . Remotely . | . . . . Salvage Created 801 | . 375 380 46 Parts 63 | . 26 32 5 Haulers Intercepted 1 | . 1 . . Recyclers Shooed . | . . . . Parts Field Recycled . | . . . . Retrieved Matter . | . . . . Parts Self-Destructed . | . . . . Prevented . | . . . . Kills | -11 -10 -10 -10 ------- Run | Yrd Mat Min Sub Combat Hostiles Destroyed 25 | . 12 10 3 Guns 20 | . 12 8 . AOE 5 | . . 2 3 Classes Destroyed 7 | . 4 2 1 Worker 6 | . 1 5 . Tunneler 4 | . . 4 . Hauler 1 | . 1 . . Swarmer 8 | . 6 2 . Grunt 10 | . 6 4 . Subdweller 3 | . . . 3 Assembled 4 | . . 4 . Best Kill Streak 5 | . 5 4 3 Combat Bots Only 4 | . 4 2 3 Max Kills in Single Turn 2 | . 2 2 1 Gunslinging 1 | . 1 1 . Exploded 1 | . . 1 1 Melee . | . . . . Uniques/NPCs Destroyed . | . . . . Combat | -11 -10 -10 -10 -------- Run | Yrd Mat Min Sub Hostile Shots Fired 152 | . 71 48 33 Missed 43 | . 17 16 10 Hits 109 | . 54 32 23 Projectile 109 | . 54 32 23 AOE 2 | . . . 2 Critical Strikes 1 | . . . 1 Damage Taken 1631 | . 559 413 659 Core 277 | . 18 90 169 Absorbed by Shields . | . . . . Core Remaining (%) 100 | 100 . . . Volleys Fired 96 | . 36 52 8 Largest 2 | . 2 2 2 Hottest 103 | . 50 103 56 Shots Fired 173 | . 72 85 16 Gun 152 | . 71 70 11 Cannon . | . . . . Launcher 20 | . 1 14 5 Special 1 | . . 1 . Kinetic 152 | . 71 70 11 Thermal 1 | . . 1 . Explosive 20 | . 1 14 5 Electromagnetic . | . . . . Robot Hit Streak 14 | . 8 10 14 Robot Miss Streak 5 | . 5 3 1 Penetration Max . | . . . . Secondary Targets 4 | . 3 1 . Max Gunslinging Chain 1 | . 1 1 . Shots Hit Robots 89 | . 38 44 7 Core Hits 53 | . 18 28 7 Critical Kills . | . . . . Critical Parts Destroyed . | . . . . Critical Strikes . | . . . . Melee Attacks . | . . . . Impact . | . . . . Slashing . | . . . . Piercing . | . . . . Sneak Attacks . | . . . . Combat Hostiles . | . . . . Follow-up Attacks . | . . . . Damage Inflicted 2287 | . 575 922 790 Guns 1267 | . 575 660 32 Cannons . | . . . . Explosions 1001 | . . 243 758 Melee . | . . . . Ramming 19 | . . 19 . Kinetic 1267 | . 575 660 32 Thermal . | . . . . Explosive 1001 | . . 243 758 Electromagnetic . | . . . . Impact . | . . . . Slashing . | . . . . Piercing . | . . . . Highest Corruption . | . . . . Average Corruption . | . . . . Corruption Purged . | . . . . Corruption Blocked . | . . . . Overload Shots . | . . . . Overflow Damage . | . . . . Projectiles . | . . . . Explosions . | . . . . Melee . | . . . . Knockbacks . | . . . . Impact . | . . . . Kinetic . | . . . . Secondary . | . . . . Self-Inflicted Damage 126 | . 17 32 77 Shots 4 | . 1 1 2 Rammed 3 | . . 3 . Targets Rammed 3 | . . 3 . Kicked . | . . . . Crushed . | . . . . Highest Temperature 113 | . 31 113 . Average Temperature 19 | . 10 23 . Received Heat Transfer 365 | . 84 164 117 Siege Activations . | . . . . Martial Activations . | . . . . Shielding Activations . | . . . . Robots Disrupted . | . . . . Combat Hostiles . | . . . . Robots Corrupted . | . . . . Combat Hostiles . | . . . . Parts Fried . | . . . . Impact Corruptions . | . . . . Robots Melted . | . . . . Combat Hostiles . | . . . . Parts Melted . | . . . . Heat Transferred . | . . . . Parts Sabotaged . | . . . . Parts Stolen . | . . . . Parts Stripped . | . . . . Power Chain Reactions . | . . . . Alert | -11 -10 -10 -10 ------- Run | Yrd Mat Min Sub Maximum Alert Level . | . . . . Low Security (%) 100 | 100 100 100 . Level 1 . | . . . . Level 2 . | . . . . Level 3 . | . . . . Level 4 . | . . . . Level 5 . | . . . . High Security . | . . . . Max Security . | . . . . Peak Influence 141 | . 141 70 . Initial 43 | . . 43 . Average 21 | . 43 12 . Influence Increases 607 | . 365 242 . Destroy 0b10 Robot/C 360 | . 240 120 . Destroy 0b10 Robot/NC 55 | . 10 45 . Destroy Leader 82 | . 62 20 . Disable Machine 15 | . 15 . . Destroy Structure 65 | . 8 57 . Lose Combat Pursuer 30 | . 30 . . Influence Decreases 607 | . 252 355 . Entered New Map 70 | . . 70 . Time Decay 517 | . 252 265 . Lost Part 20 | . . 20 . Squads Dispatched 4 | . 4 . . Investigation 2 | . 2 . . Extermination . | . . . . Reinforcement 2 | . 2 . . Assault . | . . . . Garrison . | . . . . Intercept . | . . . . Searches Triggered . | . . . . Construction Impeded . | . . . . Haulers Reinforced . | . . . . Active Scanning Responses . | . . . . Cargo Convoy Interrupts . | . . . . Stealth | -11 -10 -10 -10 --------- Run | Yrd Mat Min Sub Distress Signals 2 | . 2 . . Communications Jammed . | . . . . Distress Signals . | . . . . Times Spotted 46 | . 23 12 11 Peak Tracking Total 6 | . 6 3 6 Tactical Retreats 1 | . 1 . . Traps | -11 -10 -10 -10 ------- Run | Yrd Mat Min Sub Traps Triggered 4 | . 4 . . Indirectly . | . . . . Trap Hack Attempts . | . . . . Triggered . | . . . . Disarmed . | . . . . Reprogrammed . | . . . . Reused . | . . . . Traps Extracted . | . . . . Installed . | . . . . Triggered . | . . . . Machines | -11 -10 -10 -10 ---------- Run | Yrd Mat Min Sub Machines Disabled 1 | . 1 . . Max in Single Turn 1 | . 1 . . Machines Repaired . | . . . . Machines Dismantled . | . . . . Machines Sabotaged . | . . . . Overloaded Fab Kills . | . . . . Hacking | -11 -10 -10 -10 --------- Run | Yrd Mat Min Sub Machines Accessed . | . . . . Terminals . | . . . . Fabricators . | . . . . Repair Stations . | . . . . Recycling Units . | . . . . Scanalyzers . | . . . . Garrison Access . | . . . . Total Hacks . | . . . . Successful . | . . . . Failed . | . . . . Catastrophic . | . . . . Database Lockouts . | . . . . Manual . | . . . . Terminals . | . . . . Fabricators . | . . . . Repair Stations . | . . . . Recycling Units . | . . . . Scanalyzers . | . . . . Garrison Access . | . . . . Terminal Hacks . | . . . . Fabricator Hacks . | . . . . Repair Station Hacks . | . . . . Recycling Unit Hacks . | . . . . Scanalyzer . | . . . . Garrison Access Hacks . | . . . . Unauthorized Hacks . | . . . . Terminals . | . . . . Fabricators . | . . . . Repair Stations . | . . . . Recycling Units . | . . . . Scanalyzers . | . . . . Garrison Access . | . . . . Data Cores Recovered . | . . . . Used . | . . . . Hacking Detections . | . . . . Full Trace Events . | . . . . Feedback Events . | . . . . Feedback Blocked . | . . . . Robot Schematics Acquired . | . . . . Robots Built . | . . . . Authchips . | . . . . Time . | . . . . Total Robot Build Rating . | . . . . Part Schematics Acquired . | . . . . Parts Built . | . . . . Authchips . | . . . . Time . | . . . . Total Part Build Rating . | . . . . Parts Repaired . | . . . . Time . | . . . . Parts Recycled . | . . . . Recycled Matter . | . . . . Retrieved Matter . | . . . . Retrieved Components . | . . . . Parts Scanalyzed . | . . . . Part Schematics Acquired . | . . . . Parts Damaged . | . . . . Bothacking | -11 -10 -10 -10 ------------ Run | Yrd Mat Min Sub Used RIF Installer . | . . . . Robots Hacked . | . . . . Non-combat . | . . . . Combat . | . . . . Robot Hacks Applied . | . . . . Relay Couplers Released . | . . . . Fabnet Peak Effective % . | . . . . Robots Rewired . | . . . . Allies Hacked . | . . . . Hacks Repelled . | . . . . Allies | -11 -10 -10 -10 -------- Run | Yrd Mat Min Sub Total Allies . | . . . . Largest Group . | . . . . Highest-Rated Group . | . . . . Highest-Rated Ally . | . . . . Total Orders . | . . . . Ally Attacks . | . . . . Total Damage . | . . . . Kills . | . . . . Allies Corrupted . | . . . . Allies Melted 1 | . . . 1 Intel | -11 -10 -10 -10 ------- Run | Yrd Mat Min Sub Active Infowar (turns) . | . . . . Robot Analysis Total . | . . . . Derelict Logs Recovered 2 | . . 2 . Drone Launches . | . . . . Drone Recoveries . | . . . . Exploration | -11 -10 -10 -10 ------------- Run | Yrd Mat Min Sub Turns Passed 2725 | 129 825 1645 126 Spaces Moved 1487 | 74 424 926 63 Core 6 | 6 . . . Treads 1481 | 68 424 926 63 Legs . | . . . . Wheels . | . . . . Hover . | . . . . Flight . | . . . . Fastest Speed 50 | 50 160 160 160 Average Speed 160 | 151 160 161 160 Slowest Speed 240 | 160 160 240 160 Overloaded Moves . | . . . . Propulsion Burnouts . | . . . . Robots Hopped . | . . . . Potential Cave-ins . | . . . . Cave-ins Triggered . | . . . . Exploration Rate (%) 44 | 4 64 99 9 Regions Visited 3 Branch Regions 2 Pre-discovered Areas 1 | . . 1 . Known Exits Taken . | . . . . Unknown Exits Taken 3 | 1 1 1 . Scrap Searched 3 | . . 3 . Spaces Dug . | . . . . Terrain Destroyed 112 | . 7 69 36 Melee . | . . . . Projectile . | . . . . AOE 112 | . 7 69 36 Terrain Rammed . | . . . . Walls Destroyed . | . . . . Machines Disabled . | . . . . Actions | -11 -10 -10 -10 --------- Run | Yrd Mat Min Sub Total 1677 | 87 508 1008 74 Wait 29 | . 14 14 1 Move 1484 | 73 423 925 63 Hop . | . . . . Pick Up 26 | 6 15 4 1 Fast Attach 7 | 6 1 . . Attach 2 | . . 2 . Detach . | . . . . Swap 15 | 2 8 4 1 Drop 15 | . 11 4 . Fire 96 | . 36 52 8 Melee . | . . . . Ram . | . . . . Kick . | . . . . Crush 3 | . . 3 . Escape Stasis . | . . . . Rewire . | . . . . Trap . | . . . . Miscellaneous . | . . . . Route ------- -11/Scrapyard -10/Materials (discovered 5 exits: [*Mat x3] / [*Min] / [*Sub]) -10/Mines (discovered 3 exits: [*Mat x2] / [*Sub]) -10/Subcaves (discovered 1 exit: [*Mat]) History --------- Turn | Location | Event 8 | -11/Scrapyard | Discovered new exit (range 15) 130 | -11/Scrapyard | Entered Materials 314 | -10/Materials | Build established: Mutant 398 | -10/Materials | Discovered new exit (range 3) 501 | -10/Materials | Discovered new exit (range 8) 752 | -10/Materials | Discovered new exit (range 10) 900 | -10/Materials | Discovered new exit (range 15) 906 | -10/Materials | Discovered new exit (range 10) 955 | -10/Materials | Entered Mines 962 | -10/Mines | Received a Rocket Launcher from a helpful Derelict 1008 | -10/Mines | Met a Derelict bent on vengeance 1089 | -10/Mines | Discovered new exit (range 15) 1394 | -10/Mines | Learned location of Zion (-7) 1413 | -10/Mines | A weapon hastily lodged in a ceiling crevice suddenly fell to the ground 1766 | -10/Mines | Learned Materials terminal intel 1822 | -10/Mines | Excavation squad dispatched 1822 | -10/Mines | A large section of the Mines collapsed 2284 | -10/Mines | Discovered new exit (range 6) 2589 | -10/Mines | Discovered new exit (range 6) 2600 | -10/Mines | Entered Subcaves 2601 | -10/Subcaves | Approached by a straggling Scientist 2640 | -10/Subcaves | Discovered new exit (range 8) 2690 | -10/Subcaves | Ambushed by swarm of Subdwellers 2710 | -10/Subcaves | Core integrity fell below 50% 2711 | -10/Subcaves | Ambushed by Subdweller buried in earth 2716 | -10/Subcaves | Ambushed by Subdweller buried in earth 2719 | -10/Subcaves | Ambushed by Subdweller buried in earth 2719 | -10/Subcaves | Ambushed by Subdweller buried in earth 2722 | -10/Subcaves | Core integrity fell below 20% 2726 | -10/Subcaves | Destroyed by AM-GLF(R) with Subdweller Beam Cannon Last Messages --------------- 02710_ The unstable cave ceiling collapses. 02712_ AM-GLF(R): "FREEEEDUMB!" 02712_ 5R-A39(R) destroyed. 02713_ Lgt. Nuclear Core destroyed. 02713_ V1-OE1(R) destroyed. 02716_ HF-XR1(R) destroyed. 02717_ C0-MWA(R): "NOSTUCKSUB!" 02717_ Subatomizers dissect the Bore Cannon, destroying it. 02718_ The unstable cave ceiling collapses. 02718_ 59-FOZ(R) affixes Scrap Shield Fragment to Scrap Shield. 02719_ AH-6SG(R) destroyed. 02719_ Imp. Treads destroyed. 02719_ Destroyed Imp. Treads. 02719_ Rocket Launcher destroyed. 02719_ Autogun destroyed. 02720_ Y1-NU6(R): "ARGHSUB!" 02720_ LA-IO7(R): "THANKSYOU!" 02723_ The unstable cave ceiling collapses. 02724_ 59-FOZ(R) affixes Scrap Shield Fragment to Scrap Shield. 02725_ Imp. Treads destroyed. Map ----- +----------------------------------------------------+ | # #??????????? ### " #????????????????????? | | # #????????### ? ?????????????????????? | | # #????????# ### ??????????????????????? | | # ########## ???????????????????????? | | # ## # ## ????????????????????????? | | # ### ?????????????????????????? | | # ## # ## #? ??????????????????????????? | | # ## # ##?# #???????????????????????????? | | ## #?## ##??????????????????????????? | | ?# ### #???????? ?????????????????? | | ?# ### # ##?????? " ???????????????? | | ?###?#### ### ###" " ??????????????? | | ????????####?#### " #????????????????? | | ????????????????# #????????????????? | | ???????????????## < # ##????????????????? | | ???????????????? #### #?????????????????? | | ????????????????# #??????????????????? | | ????????????????## [ #??????????????????? | | ????????????????# " !! ## # ?#?????????????? | | ???????????????### !% ##? ##??? ##????????????? | | ???????????????# [%R #??#??## #????????????? | | ???????????????# &! =% ###?? ##???????????? | | ???????????????# &%% # #?# ##??????????? | | ???????????????# #!! = # #??????????? | | ????????????????# [ # #???????????? | | ????????????????# R &R @ #????????????? | | ????????????????## &R R #????????????? | | ?????????????????# ; ;#???????????? | | ?????????????????# # ;;#?????????? | | ?????????????????# # R ?????????? | | ?????????????????##### ## #? ????????? | | ?????????????????????######?#####; = ?????????? | | ?????????????????????????????????? % ?????????? | | ??????????????????????????????????? ?????????? | | ????????????????????????????????????? ??????????? | | ?????????????????????????????????????????????????? | | ?????????????????????????????????????????????????? | | ?????????????????????????????????????????????????? | | ?????????????????????????????????????????????????? | | ?????????????????????????????????????????????????? | | ?????????????????????????????????????????????????? | | ?????????????????????????????????????????????????? | | ?????????????????????????????????????????????????? | | ?????????????????????????????????????????????????? | | ?????????????????????????????????????????????????? | | ?????????????????????????????????????????????????? | | ?????????????????????????????????????????????????? | | ?????????????????????????????????????????????????? | | ?????????????????????????????????????????????????? | | ?????????????????????????????????????????????????? | +----------------------------------------------------+ Best States ------------- Heat Dissipation 25 Energy Generation 14 Energy Capacity 160 Matter Stores 300 Matter Capacity 300 Sight Range 16 Terrain Scan Density 10 Armor Coverage 80 Evasion (%) 40 Recoil Reduction 2 Item Schematics ----------------- None Robot Schematics ------------------ None Fabricated ------------ Nothing Repaired ---------- Nothing Alien Tech Used ----------------- None Achievements -------------- None Challenges ------------ None Game ------ Seed FlakChainCompanion Manual? 0 Play Time 00:13:47 Cumulative 38.2 hours Start 2025.10.12 @ 16:19:26 End 2025.10.12 @ 18:15:11 Sessions 1 Manual Loads 0 Difficulty Rogue Special Mode None Game No. 92 Rogue 85 Adventurer 7 Explorer 0 Win Type - Total 1 Types 1/0/0/0/0/0/0/0/0/0 Lore% 9 Gallery% 31 Achievement% 31 Wizard Run 0 Options --------- Layout 0 ASCII 0 Keyboard 1 Movement Vi Keybinds 0 Fullscreen 1 Font 18/SmallcapsGlow Map View 112x50 Zoom Use 0% Tactical HUD 1 Map Filters NONE Filters NONE Steam X RUN: e35245b9-1767-43f0-bf71-b1bdda91a723